fUSD/lending_fUSD_20250503
["ID","MTS","AMOUNT","RATE_DAILY","PERIOD"]
[359687696,1746252643839,-450.0,0.00019844,2]
[359687697,1746252643848,-450.0,0.00019844,2]
[359687698,1746252643857,-450.0,0.00019844,2]
[359687699,1746252643867,-450.0,0.00019844,2]
[359687700,1746252643877,-450.0,0.00019844,2]
[359687701,1746252643886,-1000.0,0.00019844,2]
[359687702,1746252643896,-1000.0,0.00019844,2]
[359687703,1746252643905,-1000.0,0.00019844,2]
[359687704,1746252643914,-1000.0,0.00019844,2]
[359687705,1746252643924,-1000.0,0.00019844,2]
[359687706,1746252643933,-1000.0,0.00019844,2]
[359687707,1746252643942,-1000.0,0.00019844,2]
[359687708,1746252643951,-1000.0,0.00019844,2]
[359687709,1746252643960,-1000.0,0.00019844,2]
[359687710,1746252643969,-1000.0,0.00019844,2]
[359687711,1746252643979,-1000.0,0.00019844,2]
[359687712,1746252643988,-1000.0,0.00019844,2]
[359687713,1746252643997,-1000.0,0.00019844,2]
[359687714,1746252644006,-450.0,0.00019845,2]
[359687715,1746252644016,-500.0,0.00019847,2]
[359687716,1746252644025,-150.0,0.00019847,2]
[359687717,1746252644033,-500.0,0.00019847,2]
[359687718,1746252644043,-150.0,0.00019847,2]
[359687719,1746252644053,-500.0,0.00019847,2]
[359687720,1746252644062,-150.0,0.00019847,2]
[359687721,1746252644071,-500.0,0.00019847,2]
[359687722,1746252644080,-150.0,0.00019847,2]
[359687723,1746252644089,-500.0,0.00019847,2]
[359687724,1746252644098,-150.0,0.00019847,2]
[359687725,1746252644107,-500.0,0.00019847,2]
[359687726,1746252644117,-150.0,0.00019847,2]
[359687727,1746252644126,-500.0,0.00019847,2]
[359687728,1746252644135,-500.0,0.00019847,2]
[359687729,1746252644145,-150.0,0.00019847,2]
[359687730,1746252644154,-500.0,0.00019847,2]
[359687731,1746252644164,-2064.9017436,0.00019848,2]
[359687732,1746252644173,-794.43630907,0.00019851,2]
[359687733,1746252644183,-1981.97626505,0.00019852,2]
[359687734,1746252644192,-500.0,0.00019863,2]
[359687735,1746252644201,-12500.0,0.00019865,2]
[359687736,1746252644210,-2064.9017436,0.00019865,2]
[359687737,1746252644221,-500.0,0.00019873,2]
[359687738,1746252644230,-208.45448445,0.00019873,2]
[359687739,1746252644239,-162.45076163,0.00019873,2]
[359687740,1746252644249,-500.0,0.00019873,2]
[359687741,1746252644258,-500.0,0.00019873,2]
[359687742,1746252644267,-500.0,0.00019873,2]
[359687743,1746252644277,-500.0,0.00019873,2]
[359687744,1746252644287,-500.0,0.00019873,2]
[359687745,1746252644296,-500.0,0.00019873,2]
[359687746,1746252644306,-402.99682489,0.00019873,2]
[359687747,1746252644316,-502.724134,0.00019873,2]
[359687748,1746252644326,-500.0,0.00019873,2]
[359687749,1746252644335,-500.0,0.00019873,2]
[359687750,1746252644345,-503.89540493,0.00019873,2]
[359687751,1746252644355,-12500.0,0.00019874,2]
[359687752,1746252644364,-12500.0,0.00019882,2]
[359687753,1746252644374,-2064.9017436,0.00019883,2]
[359687754,1746252644384,-4093.995,0.00019886,2]
[359687755,1746252644393,-323.067,0.00019886,2]
[359687756,1746252644402,-166.2109942,0.00019886,2]
[359687757,1746252644412,-330.48091671,0.00019886,2]
[359687758,1746252644421,-330.48091671,0.00019888,2]
[359687759,1746252644431,-166.2109942,0.00019891,2]
[359687760,1746252644440,-330.48091671,0.00019891,2]
[359687761,1746252644450,-12500.0,0.00019891,2]
[359687762,1746252644460,-12500.0,0.00019891,2]
[359687763,1746252644469,-330.48091671,0.00019893,2]
[359687764,1746252644479,-166.2109942,0.00019895,2]
[359687765,1746252644489,-330.48091671,0.00019895,2]
[359687766,1746252644499,-330.48091671,0.00019898,2]
[359687767,1746252644508,-500.0,0.00019899,2]
[359687768,1746252644518,-1248.368,0.00019899,2]
[359687769,1746252644528,-12500.0,0.000199,2]
[359687770,1746252644537,-12500.0,0.000199,2]
[359687771,1746252644547,-2780.94450003,0.000199,2]
[359687772,1746252644556,-166.2109942,0.000199,2]
[359687773,1746252644568,-1981.97626505,0.000199,2]
[359687774,1746252644580,-5152.27893101,0.000199,2]
[359687775,1746252644590,-330.48091671,0.000199,2]
[359687776,1746252644600,-2064.9017436,0.000199,2]
[359687777,1746252644611,-422.90548346,0.000199,2]
[359687778,1746252644621,-7357.50131508,0.000199,2]
[359687779,1746252644630,-201.50142861,0.000199,2]
[359687780,1746252644640,-6757.669,0.00019947,2]
[359687781,1746252644651,-4008.0,0.00019947,2]
[359687782,1746252644661,-153.0,0.00019947,2]
[359687783,1746252644671,-890.635,0.00019947,2]
[359687784,1746252644680,-878.0,0.00019947,2]
[359687785,1746252644690,-151.0,0.00019957,2]
[359687786,1746252644700,-151.0,0.00019964,2]
[359687787,1746252644710,-151.0,0.00019968,2]
[359687788,1746252644720,-151.0,0.0001997,2]
[359687789,1746252644730,-500.0,0.00019972,2]
[359687790,1746252644740,-24428.0,0.00019973,2]
[359687791,1746252644750,-500.0,0.00019973,2]
[359687792,1746252644760,-500.0,0.00019973,2]
[359687793,1746252644770,-506.33875235,0.00019973,2]
[359687794,1746252644779,-532.23391832,0.00019973,2]
[359687795,1746252644790,-500.0,0.00019973,2]
[359687796,1746252644799,-501.21994559,0.00019973,2]
[359687797,1746252644809,-501.15741321,0.00019973,2]
[359687798,1746252644819,-959.0,0.00019973,2]
[359687799,1746252644828,-500.0,0.00019973,2]
[359687800,1746252644838,-243.83231524,0.00019973,2]
[359687801,1746252644847,-517.26161729,0.00019973,2]
[359687802,1746252644858,-303.17184781,0.00019973,2]
[359687803,1746252644868,-500.0,0.00019973,2]
[359687804,1746252644879,-505.26039964,0.00019973,2]
[359687805,1746252644889,-500.8951883,0.00019973,2]
[359687806,1746252644899,-160.20238278,0.00019973,2]
[359687807,1746252644909,-500.0,0.00019973,2]
[359687808,1746252644919,-152.63342926,0.00019973,2]
[359687809,1746252644929,-500.0,0.00019973,2]
[359687810,1746252644938,-502.06385384,0.00019973,2]
[359687811,1746252644947,-500.0,0.00019973,2]
[359687812,1746252644957,-500.0,0.00019973,2]
[359687813,1746252644966,-500.0,0.00019973,2]
[359687814,1746252644976,-539.24803438,0.00019973,2]
[359687815,1746252644985,-151.0,0.00019977,2]
[359687816,1746252644995,-450.0,0.00019985,2]
[359687817,1746252645004,-450.0,0.00019985,2]
[359687818,1746252645014,-489.93000742,0.00019985,2]
[359687819,1746252645024,-450.0,0.00019985,2]
[359687820,1746252645034,-367.45052593,0.00019985,2]
[359687821,1746252645043,-450.0,0.00019985,2]
[359687822,1746252645053,-450.0,0.00019985,2]
[359687823,1746252645064,-450.0,0.00019985,2]
[359687824,1746252645073,-450.0,0.00019985,2]
[359687825,1746252645083,-771.25,0.00019985,2]
[359687826,1746252645092,-571.93,0.00019985,2]
[359687827,1746252645102,-450.0,0.00019985,2]
[359687829,1746252645111,-461.61160083,0.00019985,2]
[359687830,1746252645121,-456.28960319,0.00019985,2]
[359687831,1746252645130,-450.0,0.00019985,2]
[359687832,1746252645139,-510.1275576,0.00019985,2]
[359687833,1746252645149,-471.92,0.00019985,2]
[359687834,1746252645158,-450.0,0.00019985,2]
[359687835,1746252645167,-450.0,0.00019985,2]
[359687836,1746252645177,-450.0,0.00019985,2]
[359687837,1746252645186,-990.73,0.00019985,2]
[359687838,1746252645195,-467.7110541,0.00019985,2]
[359687839,1746252645205,-300.0,0.00019985,2]
[359687840,1746252645215,-258.20845104,0.00019985,2]
[359687841,1746252645224,-472.47,0.00019985,2]
[359687842,1746252645234,-450.0,0.00019985,2]
[359687843,1746252645243,-450.0,0.00019985,2]
[359687844,1746252645253,-600.85,0.00019985,2]
[359687845,1746252645263,-730.93,0.00019985,2]
[359687846,1746252645272,-450.0,0.00019985,2]
[359687847,1746252645282,-450.0,0.00019985,2]
[359687848,1746252645292,-450.0,0.00019985,2]
[359687849,1746252645301,-450.0,0.00019985,2]
[359687850,1746252645312,-469.79272155,0.00019985,2]
[359687851,1746252645322,-450.0,0.00019985,2]
[359687852,1746252645332,-450.0,0.00019985,2]
[359687853,1746252645342,-450.0,0.00019985,2]
[359687854,1746252645351,-488.6,0.00019985,2]
[359687855,1746252645361,-450.0,0.00019985,2]
[359687856,1746252645370,-450.0,0.00019985,2]
[359687857,1746252645380,-450.0,0.00019985,2]
[359687858,1746252645390,-461.16882008,0.00019985,2]
[359687859,1746252645399,-455.06729876,0.00019985,2]
[359687860,1746252645409,-450.0,0.00019985,2]
[359687861,1746252645418,-450.0,0.00019985,2]
[359687862,1746252645428,-2437.77,0.00019985,2]
[359687863,1746252645437,-450.0,0.00019985,2]
[359687864,1746252645446,-450.0,0.00019985,2]
[359687865,1746252645455,-450.0,0.00019985,2]
[359687866,1746252645465,-461.35,0.00019985,2]
[359687867,1746252645474,-412.52998212,0.00019985,2]
[359687868,1746252645483,-450.0,0.00019985,2]
[359687869,1746252645492,-450.0,0.00019985,2]
[359687870,1746252645501,-450.0,0.00019985,2]
[359687871,1746252645511,-1002.95,0.00019985,2]
[359687872,1746252645520,-450.0,0.00019985,2]
[359687873,1746252645530,-450.0,0.00019985,2]
[359687874,1746252645539,-450.0,0.00019985,2]
[359687875,1746252645549,-450.0,0.00019985,2]
[359687876,1746252645559,-1038.06,0.00019985,2]
[359687877,1746252645570,-450.0,0.00019985,2]
[359687878,1746252645582,-171.7368711,0.00019985,2]
[359687879,1746252645592,-450.0,0.00019985,2]
[359687880,1746252645601,-450.0,0.00019985,2]
[359687881,1746252645611,-450.0,0.00019985,2]
[359687882,1746252645621,-450.0,0.00019985,2]
[359687883,1746252645631,-356.92621628,0.00019985,2]
[359687884,1746252645641,-520.66241871,0.00019985,2]
[359687885,1746252645651,-2128.0,0.00019986,2]
[359687886,1746252645661,-291634.8577219,0.00019986,2]
[359687887,1746252645670,-22097.3011101,0.00019986,2]
[359687888,1746252645680,-7221.3311046,0.00019986,2]
[359687889,1746252645689,-1233.29204468,0.0001999,2]
[359687890,1746252645699,-1233.29204468,0.0001999,2]
[359687891,1746252645708,-1233.29204468,0.0001999,2]
[359687892,1746252645718,-500.0,0.00019999,2]
[359687893,1746252645727,-679.71892541,0.00019999,2]
[359687894,1746252645737,-500.0,0.00019999,2]
[359687895,1746252645746,-300.0,0.00019999,2]
[359687896,1746252645756,-300.0,0.00019999,2]
[359687897,1746252645766,-300.0,0.00019999,2]
[359687898,1746252645775,-267.56632987,0.0002,2]
[359687899,1746252645785,-606115.05961028,0.0002,2]
[359687900,1746252645794,-77071.10101099,0.0002,2]
[359687901,1746252645804,-91698.92907707,0.0002,2]
[359687902,1746252645814,-301.4080882,0.0002,2]
[359687903,1746252645823,-10000.0,0.0002,2]
[359687904,1746252645833,-1483.45349757,0.0002,2]
[359687905,1746252645843,-4305.94775952,0.0002,2]
[359687906,1746252645852,-481.47231778,0.0002,2]
[359687907,1746252645862,-50000.0,0.0002,2]
[359687939,1746252646144,-3054.93258235,0.0002,2]
[359687943,1746252646200,-5655.83784573,0.0002,2]
[359687945,1746252646210,-2930323.2605186,0.0002,2]
[359687948,1746252646510,-797.18,0.00019843,2]
[359687949,1746252646520,-41.77737649,0.0002,2]
[359687950,1746252646550,-979.16171516,0.0002,2]
[359687951,1746252646793,-2270.27439078,0.0002,2]
[359687952,1746252647272,-521455.29539299,0.0002,2]
[359687953,1746252647322,-1504.37868201,0.0002,2]
[359687954,1746252647333,-519.285,0.0002,2]
[359687955,1746252691013,250.0,0.00019065,7]
[359687957,1746252852427,179.050315,0.0003287,60]
[359687958,1746252855679,179.050315,0.0003287,61]
[359687959,1746252858696,179.050315,0.0003287,62]
[359687960,1746252861699,179.050315,0.0003287,63]
[359687961,1746252864292,179.050315,0.0003287,64]
[359687962,1746252867136,179.050315,0.0003287,65]
[359687963,1746252870009,179.050315,0.0003287,66]
[359687964,1746252872759,179.050315,0.0003287,67]
[359687965,1746252875464,179.050315,0.0003287,68]
[359687966,1746252878314,179.050315,0.0003287,69]
[359687967,1746252881899,179.050315,0.0003287,70]
[359687968,1746252885276,179.050315,0.0003287,71]
[359687969,1746252887865,179.050315,0.0003287,72]
[359687970,1746252890900,179.050315,0.0003287,73]
[359687971,1746252893990,179.050315,0.0003287,74]
[359687972,1746252896670,179.050315,0.0003287,75]
[359687973,1746252899518,179.050315,0.0003287,76]
[359687974,1746252902685,179.050315,0.0003287,77]
[359687975,1746252906210,179.050315,0.0003287,78]
[359687976,1746252909448,179.050315,0.0003287,79]
[359687977,1746252913262,179.050315,0.0003287,80]
[359687978,1746252916394,179.050315,0.0003287,81]
[359687979,1746252919141,179.050315,0.0003287,82]
[359687980,1746252922074,179.050315,0.0003287,83]
[359687981,1746252925758,179.050315,0.0003287,84]
[359687982,1746252928469,179.050315,0.0003287,85]
[359687983,1746252931107,179.050315,0.0003287,86]
[359687984,1746252933844,179.050315,0.0003287,87]
[359687985,1746252936563,179.050315,0.0003287,88]
[359687986,1746252939406,179.050315,0.0003287,89]
[359687987,1746252942994,179.050315,0.0003287,90]
[359687988,1746252945574,179.050315,0.0003287,91]
[359687989,1746252948147,179.050315,0.0003287,92]
[359687990,1746252951370,179.050315,0.0003287,93]
[359687991,1746252954016,179.050315,0.0003287,94]
[359687992,1746252956935,179.050315,0.0003287,95]
[359687993,1746252959478,179.050315,0.0003287,96]
[359687994,1746252961992,179.050315,0.0003287,97]
[359687995,1746252964760,179.050315,0.0003287,98]
[359687996,1746252968866,179.050315,0.0003287,99]
[359687997,1746252973326,179.050315,0.0003287,100]
[359687998,1746252978941,179.050315,0.0003287,101]
[359687999,1746252979534,1000.0,0.00018856,2]
[359688000,1746252979565,179.050315,0.0003287,102]
[359688001,1746252982089,179.050315,0.0003287,103]
[359688002,1746252984848,179.050315,0.0003287,104]
[359688003,1746252987142,166.66,0.00019422,2]
[359688004,1746252987838,179.050315,0.0003287,105]
[359688005,1746252991370,179.050315,0.0003287,106]
[359688006,1746252994496,179.050315,0.0003287,107]
[359688007,1746252997764,179.050315,0.0003287,108]
[359688008,1746253000337,179.050315,0.0003287,109]
[359688009,1746253005171,179.050315,0.0003287,110]
[359688010,1746253006894,179.050315,0.0003287,111]
[359688011,1746253010121,179.050315,0.0003287,112]
[359688012,1746253012609,179.050315,0.0003287,113]
[359688013,1746253015426,179.050315,0.0003287,114]
[359688014,1746253017968,179.050315,0.0003287,115]
[359688015,1746253020972,179.050315,0.0003287,116]
[359688016,1746253023351,179.050315,0.0003287,117]
[359688017,1746253026411,179.050315,0.0003287,118]
[359688018,1746253028939,179.050315,0.0003287,119]
[359688019,1746253031624,179.050315,0.0003287,120]
[359688024,1746253222842,23900.0,0.00018895,2]
[359688025,1746253447727,3000.0,0.00032876,60]
[359688026,1746253449336,808.36,0.00018811,2]
[359688027,1746253503303,1738.41,0.00018809,2]
[359688031,1746253584271,15227.62381864,0.0002,5]
[359688037,1746253629852,310.54,0.00016889,2]
[359688038,1746253630060,310.54,0.00019153,2]
[359688039,1746253636962,1411.35678222,0.0002,5]
[359688208,1746253677268,250.0,0.0001879,7]
[359688209,1746253719429,1013.0,0.0002,6]
[359688219,1746253831882,-151.0,0.00019561,2]
[359688220,1746253831892,-200.0,0.00019574,2]
[359688221,1746253831901,-1032.98824874,0.0001961,2]
[359688222,1746253831910,-200.0,0.00019637,2]
[359688223,1746253831919,-167.54066738,0.00019661,2]
[359688224,1746253831928,-3333.59465729,0.00019742,2]
[359688225,1746253831938,-300.0,0.00019749,2]
[359688226,1746253831947,-1200.0,0.00019749,2]
[359688227,1746253831956,-300.0,0.00019749,2]
[359688228,1746253831966,-207.4,0.00019749,2]
[359688230,1746253831975,-2554.76132659,0.0001975,2]
[359688234,1746253832543,-715.29272777,0.0001975,2]
[359688235,1746253832554,-3983.40963561,0.0001975,2]
[359688236,1746253832571,-666.19503,0.0001975,2]
[359688237,1746253832582,-419.84269477,0.0001975,2]
[359688238,1746253832594,-417.74206616,0.0001975,2]
[359688239,1746253832606,-451.86647784,0.0001975,2]
[359688252,1746253839940,-2969.91955278,0.0001975,2]
[359688253,1746253840093,-6463.59085138,0.0001975,2]
[359688254,1746253840103,-794.43630907,0.0001975,2]
[359688255,1746253840112,-799.24315845,0.00019753,2]
[359688256,1746253840121,-799.24315845,0.00019753,2]
[359688257,1746253840131,-799.24315845,0.00019753,2]
[359688258,1746253840141,-799.24315845,0.00019753,2]
[359688259,1746253840151,-799.24315845,0.00019753,2]
[359688260,1746253840161,-799.24315845,0.00019753,2]
[359688261,1746253840170,-799.24315845,0.00019753,2]
[359688262,1746253840180,-799.24315845,0.00019753,2]
[359688263,1746253840189,-799.24315845,0.00019753,2]
[359688264,1746253840199,-799.24315845,0.00019753,2]
[359688265,1746253840208,-799.24315845,0.00019753,2]
[359688266,1746253840218,-799.24315845,0.00019753,2]
[359688267,1746253840227,-799.24315845,0.00019753,2]
[359688268,1746253840236,-799.24315845,0.00019753,2]
[359688269,1746253840246,-799.24315845,0.00019753,2]
[359688270,1746253840256,-799.24315845,0.00019753,2]
[359688271,1746253840265,-799.24315845,0.00019753,2]
[359688272,1746253840274,-799.24315845,0.00019753,2]
[359688273,1746253840284,-799.24315845,0.00019753,2]
[359688274,1746253840293,-799.24315845,0.00019753,2]
[359688275,1746253840303,-799.24315845,0.00019753,2]
[359688276,1746253840312,-799.24315845,0.00019753,2]
[359688277,1746253840322,-799.24315845,0.00019753,2]
[359688278,1746253840330,-799.24315845,0.00019753,2]
[359688279,1746253840339,-799.24315845,0.00019753,2]
[359688280,1746253840348,-799.24315845,0.00019753,2]
[359688281,1746253840357,-799.24315845,0.00019753,2]
[359688282,1746253840366,-799.24315845,0.00019753,2]
[359688283,1746253840375,-799.24315845,0.00019753,2]
[359688284,1746253840385,-799.24315845,0.00019753,2]
[359688285,1746253840395,-799.24315845,0.00019753,2]
[359688286,1746253840404,-799.24315845,0.00019753,2]
[359688287,1746253840413,-799.24315845,0.00019753,2]
[359688288,1746253840422,-799.24315845,0.00019753,2]
[359688289,1746253840431,-799.24315845,0.00019753,2]
[359688290,1746253840440,-799.24315845,0.00019753,2]
[359688291,1746253840450,-799.24315845,0.00019753,2]
[359688292,1746253840459,-799.24315845,0.00019753,2]
[359688293,1746253840468,-799.24315845,0.00019753,2]
[359688294,1746253840477,-799.24315845,0.00019753,2]
[359688295,1746253840486,-799.24315845,0.00019753,2]
[359688296,1746253840495,-799.24315845,0.00019753,2]
[359688297,1746253840504,-799.24315845,0.00019753,2]
[359688298,1746253840514,-799.24315845,0.00019753,2]
[359688299,1746253840523,-799.24315845,0.00019753,2]
[359688300,1746253840535,-799.24315845,0.00019753,2]
[359688301,1746253840543,-9839.41,0.00019757,2]
[359688302,1746253840553,-2056.37,0.00019757,2]
[359688303,1746253840563,-15347.64,0.00019757,2]
[359688304,1746253840572,-3333.59465723,0.0001976,2]
[359688305,1746253840581,-1000.0,0.0001976,2]
[359688306,1746253840591,-1000.0,0.0001976,2]
[359688307,1746253840600,-1000.0,0.0001976,2]
[359688308,1746253840611,-1000.0,0.0001976,2]
[359688309,1746253840620,-1000.0,0.0001976,2]
[359688310,1746253840630,-1000.0,0.0001976,2]
[359688311,1746253840639,-1000.0,0.0001976,2]
[359688312,1746253840648,-1000.0,0.0001976,2]
[359688313,1746253840657,-1000.0,0.0001976,2]
[359688314,1746253840666,-1000.0,0.0001976,2]
[359688315,1746253840675,-1000.0,0.0001976,2]
[359688316,1746253840684,-1000.0,0.0001976,2]
[359688317,1746253840694,-1000.0,0.0001976,2]
[359688318,1746253840703,-492.26,0.0001976,2]
[359688319,1746253840712,-450.0,0.0001976,2]
[359688320,1746253840721,-523.12000413,0.0001976,2]
[359688321,1746253840730,-450.0,0.0001976,2]
[359688322,1746253840739,-450.0,0.0001976,2]
[359688323,1746253840748,-450.0,0.0001976,2]
[359688324,1746253840757,-450.0,0.0001976,2]
[359688325,1746253840766,-450.0,0.0001976,2]
[359688326,1746253840775,-271.1320085,0.0001976,2]
[359688327,1746253840784,-450.0,0.0001976,2]
[359688328,1746253840793,-450.0,0.0001976,2]
[359688329,1746253840802,-519.09,0.0001976,2]
[359688330,1746253840812,-1053.62,0.0001976,2]
[359688331,1746253840821,-1163.31,0.0001976,2]
[359688332,1746253840830,-450.0,0.0001976,2]
[359688333,1746253840839,-450.0,0.0001976,2]
[359688334,1746253840849,-450.0,0.0001976,2]
[359688335,1746253840858,-506.66,0.0001976,2]
[359688336,1746253840867,-450.0,0.0001976,2]
[359688337,1746253840876,-898.8,0.0001976,2]
[359688338,1746253840886,-610.37,0.0001976,2]
[359688339,1746253840896,-1313.66,0.0001976,2]
[359688340,1746253840905,-487.88,0.0001976,2]
[359688341,1746253840914,-450.0,0.0001976,2]
[359688342,1746253840924,-450.0,0.0001976,2]
[359688343,1746253840933,-450.0,0.0001976,2]
[359688344,1746253840942,-3333.59465723,0.00019777,2]
[359688345,1746253840952,-151.0,0.00019786,2]
[359688346,1746253840961,-668.65185757,0.00019786,2]
[359688347,1746253840971,-3333.59465723,0.00019795,2]
[359688348,1746253840980,-450.0,0.00019797,2]
[359688349,1746253840990,-450.0,0.00019797,2]
[359688350,1746253841000,-450.0,0.00019797,2]
[359688351,1746253841009,-450.0,0.00019797,2]
[359688352,1746253841018,-523.93,0.00019797,2]
[359688353,1746253841027,-450.0,0.00019797,2]
[359688354,1746253841037,-450.0,0.00019797,2]
[359688355,1746253841046,-450.0,0.00019797,2]
[359688356,1746253841056,-450.0,0.00019797,2]
[359688357,1746253841065,-450.0,0.00019797,2]
[359688358,1746253841075,-450.0,0.00019797,2]
[359688359,1746253841085,-519.68909927,0.00019797,2]
[359688360,1746253841095,-520.74,0.00019797,2]
[359688361,1746253841104,-949.95,0.00019797,2]
[359688362,1746253841113,-517.44658911,0.00019797,2]
[359688363,1746253841122,-466.83289882,0.00019797,2]
[359688364,1746253841132,-450.0,0.00019797,2]
[359688365,1746253841141,-450.0,0.00019797,2]
[359688366,1746253841150,-450.0,0.00019797,2]
[359688367,1746253841160,-450.0,0.00019797,2]
[359688368,1746253841169,-4239.77,0.00019797,2]
[359688369,1746253841179,-1435.38,0.00019797,2]
[359688370,1746253841188,-450.79,0.00019797,2]
[359688371,1746253841197,-450.0,0.00019797,2]
[359688372,1746253841206,-450.0,0.00019797,2]
[359688373,1746253841215,-544.67290614,0.00019797,2]
[359688374,1746253841224,-515.68048127,0.00019797,2]
[359688375,1746253841234,-450.0,0.00019797,2]
[359688376,1746253841243,-450.0,0.00019797,2]
[359688377,1746253841251,-450.0,0.00019797,2]
[359688378,1746253841261,-450.0,0.00019797,2]
[359688379,1746253841270,-450.0,0.00019797,2]
[359688380,1746253841279,-4996.39,0.00019797,2]
[359688381,1746253841288,-450.0,0.00019797,2]
[359688382,1746253841297,-450.0,0.00019797,2]
[359688383,1746253841307,-480.48093408,0.00019798,2]
[359688384,1746253841316,-1045.3,0.00019798,2]
[359688385,1746253841325,-450.0,0.00019798,2]
[359688386,1746253841334,-573.89,0.00019798,2]
[359688387,1746253841343,-1443.3,0.00019798,2]
[359688388,1746253841352,-662.74,0.00019798,2]
[359688389,1746253841362,-493.57,0.00019798,2]
[359688390,1746253841371,-512.58,0.00019798,2]
[359688391,1746253841380,-450.0,0.00019798,2]
[359688392,1746253841389,-512.68,0.00019798,2]
[359688393,1746253841399,-1487.22,0.00019798,2]
[359688394,1746253841409,-510.27,0.00019798,2]
[359688395,1746253841418,-650.28,0.00019798,2]
[359688396,1746253841427,-450.0,0.00019798,2]
[359688397,1746253841437,-840.94,0.00019798,2]
[359688398,1746253841447,-450.0,0.00019798,2]
[359688399,1746253841459,-1267.56,0.00019798,2]
[359688400,1746253841468,-469.05,0.00019798,2]
[359688401,1746253841477,-537.2,0.00019798,2]
[359688402,1746253841486,-1395.49,0.00019798,2]
[359688403,1746253841495,-602.9,0.00019798,2]
[359688404,1746253841504,-450.0,0.00019798,2]
[359688405,1746253841514,-450.0,0.00019798,2]
[359688406,1746253841524,-328.83609897,0.00019798,2]
[359688407,1746253841534,-2100.71,0.00019798,2]
[359688408,1746253841544,-920.66,0.00019798,2]
[359688409,1746253841553,-1895.06,0.00019798,2]
[359688410,1746253841562,-269.1165694,0.00019799,2]
[359688411,1746253841571,-3333.59465723,0.00019812,2]
[359688412,1746253841580,-3333.59465723,0.0001983,2]
[359688413,1746253841589,-500.0,0.00019836,2]
[359688414,1746253841599,-2000.0,0.0001984,2]
[359688415,1746253841608,-200.0,0.0001984,2]
[359688416,1746253841617,-213.62789732,0.0001984,2]
[359688417,1746253841626,-177.36160771,0.0001984,2]
[359688418,1746253841635,-164.6522629,0.0001984,2]
[359688419,1746253841644,-192.85624087,0.0001984,2]
[359688420,1746253841654,-500.0,0.0001984,2]
[359688421,1746253841662,-270.64639964,0.0001984,2]
[359688422,1746253841671,-500.0,0.0001984,2]
[359688423,1746253841680,-500.0,0.0001984,2]
[359688424,1746253841690,-500.0,0.0001984,2]
[359688425,1746253841699,-500.0,0.0001984,2]
[359688426,1746253841708,-300.0,0.0001984,2]
[359688427,1746253841717,-450.0,0.00019841,2]
[359688428,1746253841726,-450.0,0.00019841,2]
[359688429,1746253841735,-450.0,0.00019841,2]
[359688430,1746253841745,-490.06,0.00019841,2]
[359688431,1746253841754,-450.0,0.00019841,2]
[359688432,1746253841763,-450.0,0.00019841,2]
[359688434,1746253841979,-414.13707132,0.00019841,2]
[359688435,1746253841988,-450.0,0.00019841,2]
[359688436,1746253841997,-450.0,0.00019841,2]
[359688437,1746253842007,-450.0,0.00019841,2]
[359688438,1746253842016,-450.0,0.00019841,2]
[359688439,1746253842025,-450.0,0.00019841,2]
[359688440,1746253842035,-450.0,0.00019841,2]